bitfinex-derivatives/quotes_ETHF0:USTF0_20250810
["timestamp","ask_amount","ask_price","bid_price","bid_amount"]
[1754824227398,1.0328,4195.3,4195.2,1.1374]
[1754824227802,1.567,4195.3,4195.2,1.1374]
[1754824228104,0.8904,4195.4,4195.3,1.137]
[1754824228303,0.8904,4195.4,4195.3,1.4075]
[1754824230499,1.4562,4195.5,4195.4,0.5176]
[1754824230699,1.7168,4195.5,4195.4,1.4075]
[1754824230900,2.1328,4195.5,4195.4,0.2579]
[1754824231102,1.1,4195.5,4194.1,0.7881]
[1754824231302,2.667,4195.5,4195.4,1.137]
[1754824231597,0.19430309,4196.5,4195.4,1.0097]
[1754824231803,0.6168,4195.5,4195.4,1.554]
[1754824232098,0.3562,4195.5,4195.4,1.554]
[1754824235408,0.7525,4196.7,4195.5,0.9261]
[1754824235804,0.18759452,4196.8,4195.6,0.9261]
[1754824236005,0.3605,4195.8,4195.7,1.2806]
[1754824236407,0.6182,4195.8,4195.7,1.5481]
[1754824236911,0.3605,4195.9,4195.8,1.1529]
[1754824237106,0.6182,4195.9,4195.8,1.5481]
[1754824237309,0.8382,4195.9,4195.8,1.5481]
[1754824237505,0.6182,4195.9,4195.8,1.5481]
[1754824238010,1.0959,4195.9,4195.8,1.5481]
[1754824238400,0.4948,4195.8,4195.5,0.2634]
[1754824238603,0.4948,4195.8,4193.3,8.911]
[1754824238604,0.22,4195.3,4194.2,0.3952]
[1754824238809,0.5325,4195.2,4194.3,0.5309]
[1754824239009,1.0959,4195.0,4194.9,0.4434]
[1754824239309,1.3707,4194.8,4194.7,1.102]
[1754824239511,1.3707,4194.8,4194.7,0.7068]
[1754824239704,1.3707,4194.8,4194.7,0.4434]
[1754824239905,0.6182,4194.8,4194.4,0.3952]
[1754824240105,0.19309458,4196.8,4194.4,0.3952]
[1754824240106,1.3707,4194.5,4194.4,1.2806]
[1754824240410,1.0959,4194.5,4194.4,1.5481]
[1754824241907,1.3707,4194.1,4194.0,1.5481]
[1754824242407,1.3707,4194.1,4194.0,1.2806]
[1754824242806,1.3707,4194.1,4194.0,1.5481]
[1754824243002,1.3707,4194.1,4194.0,1.1529]
[1754824243214,1.113,4193.9,4193.8,1.102]
[1754824243405,1.3707,4193.9,4193.8,1.102]
[1754824243602,2.44163947,4196.1,4193.8,1.2806]
[1754824243806,0.22,4194.4,4192.8,21.979]
[1754824244006,1.1507,4194.4,4194.3,0.622]
[1754824244206,1.5511,4194.4,4194.3,0.622]
[1754824245108,0.9329,4194.3,4192.7,56.312]
[1754824245310,0.4004,4194.2,4192.7,34.338]
[1754824245513,0.5325,4194.1,4192.9,3.12480167]
[1754824245712,0.4004,4194.0,4192.8,3.12480167]
[1754824246013,0.3605,4193.2,4193.1,1.5481]
[1754824246215,1.5511,4193.2,4193.1,1.0172]
[1754824246808,1.5511,4193.2,4193.1,1.5481]
[1754824247304,1.5511,4193.2,4193.1,1.0172]
[1754824247509,0.18914093,4194.2,4192.7,56.308]
[1754824247510,0.6182,4192.9,4192.8,0.8386]
[1754824247817,1.5511,4192.9,4192.8,1.0172]
[1754824248917,1.5511,4192.9,4192.8,1.5481]
[1754824249418,1.1507,4192.9,4192.8,1.5481]
[1754824250111,1.5511,4192.9,4192.8,1.5481]
[1754824261622,0.2577,4194.1,4192.8,1.5481]
[1754824261827,1.5511,4193.8,4193.7,0.4434]
[1754824262728,1.5511,4193.8,4193.7,0.8386]
[1754824263026,1.5511,4193.8,4193.7,1.5481]
[1754824263821,0.893,4193.8,4193.7,1.5481]
[1754824264126,0.6182,4193.5,4193.4,0.4434]
[1754824264326,1.5511,4193.5,4193.4,1.1529]
[1754824264820,1.5511,4193.5,4193.4,1.5481]
[1754824265524,0.893,4193.5,4193.4,1.5481]
[1754824265918,0.5493,4193.7,4193.5,0.9204]
[1754824266116,0.9127,4193.7,4193.6,1.5528]
[1754824266316,1.167,4193.7,4192.4,3.08703392]
[1754824266523,0.19103716,4194.6,4192.3,21.955]
[1754824266728,0.6741,4194.7,4192.6,0.9204]
[1754824266930,1.5665,4192.7,4192.6,1.5528]
[1754824267124,0.638,4192.7,4192.6,1.5528]
[1754824267522,0.9127,4192.7,4192.6,1.5528]
[1754824267718,0.5493,4193.0,4192.6,1.5528]
[1754824268030,0.9488,4194.5,4192.7,0.9204]
[1754824268224,0.3995,4194.5,4193.0,0.2757]
[1754824268428,0.3995,4194.3,4193.2,0.9204]
[1754824268621,0.19134178,4194.6,4193.3,0.9204]
[1754824268821,0.9127,4193.4,4193.3,1.5528]
[1754824269526,0.7353,4193.7,4193.6,0.1758]
[1754824269730,0.9127,4193.7,4193.6,1.5528]
[1754824270122,0.9488,4194.0,4193.6,0.6324]
[1754824270328,0.5493,4194.0,4193.9,1.5528]
[1754824270536,0.9127,4194.0,4193.9,1.5528]
[1754824274125,1.167,4194.0,4193.9,1.5528]
[1754824275325,0.5493,4195.0,4194.0,0.9204]
[1754824275527,0.5493,4195.0,4192.6,2.13497055]
[1754824275528,0.75165887,4195.5,4194.8,0.6324]
[1754824275731,0.33286565,4195.5,4195.4,1.2771]
[1754824275920,0.2746,4196.3,4194.1,3.0355362]
[1754824275921,0.3634,4195.6,4195.5,1.2794]
[1754824276125,0.18645152,4196.7,4195.6,0.9204]
[1754824276126,0.3634,4195.7,4195.6,0.9204]
[1754824276331,0.186,4195.7,4195.6,1.5528]
[1754824276926,0.9488,4197.0,4195.6,0.6324]
[1754824277127,0.19167895,4197.5,4195.6,3.7182019]
[1754824277432,0.8923,4196.8,4196.7,0.6324]
[1754824277628,1.5665,4196.8,4196.7,1.018]
[1754824277831,0.7547558,4197.7,4196.7,1.018]
[1754824278024,0.6742,4197.5,4196.8,0.5348]
[1754824278229,1.5665,4197.5,4197.4,0.4566]
[1754824278437,0.2543,4197.3,4197.2,0.659]
[1754824278736,1.5665,4197.3,4197.2,0.659]
[1754824278935,1.5665,4197.3,4197.2,0.4566]
[1754824279127,1.5665,4197.3,4196.9,0.3856]
[1754824279324,0.6177,4197.3,4196.9,0.3856]
[1754824279527,1.5665,4197.0,4196.9,1.5528]
[1754824280122,0.6177,4197.0,4196.9,0.2734]
[1754824280331,1.5665,4197.0,4196.9,0.2734]
[1754824281028,0.3634,4197.0,4196.9,1.5528]
[1754824281231,0.3634,4197.0,4195.3,0.18783433]
[1754824281232,0.5493,4197.3,4197.0,0.9204]
[1754824281428,0.9127,4197.3,4197.2,1.5528]
[1754824281932,1.5665,4197.3,4197.2,1.018]
[1754824282334,0.5493,4197.9,4197.3,0.6613]
[1754824282528,1.5665,4197.8,4197.7,1.5528]
[1754824283624,1.5665,4197.8,4197.7,1.018]
[1754824284229,1.5665,4197.8,4197.7,0.8422]
[1754824285836,0.5493,4198.4,4197.7,0.2734]
[1754824286035,1.5665,4197.8,4197.7,1.5528]
[1754824286234,1.5665,4197.8,4197.7,1.018]
[1754824286436,1.5665,4197.8,4197.7,0.8422]
[1754824287042,1.5665,4197.8,4197.7,1.2937]
[1754824287340,1.5665,4197.8,4197.7,0.4566]
[1754824287836,0.6742,4197.5,4195.4,0.9204]
[1754824288041,0.6742,4198.3,4195.6,0.6447]
[1754824288246,0.5493,4197.9,4195.9,0.5348]
[1754824288439,0.19301124,4198.5,4195.7,3.15658207]
[1754824288735,0.19301124,4198.5,4195.3,0.18629268]
[1754824288736,0.3995,4197.6,4196.2,0.3856]
[1754824288936,1.26451204,4199.4,4195.8,3.08749259]
[1754824288937,1.45088853,4199.4,4195.8,3.08749259]
[1754824289145,1.45088853,4199.4,4196.3,3.08749259]
[1754824289345,1.45088853,4199.4,4193.7,2.13497055]
[1754824289346,0.9488,4199.2,4196.4,0.9204]
[1754824289641,1.5665,4196.5,4196.4,1.018]
[1754824290044,1.5665,4196.5,4196.4,1.5528]
[1754824291136,1.5665,4196.5,4196.4,1.018]
[1754824291444,1.5665,4196.5,4196.4,0.2734]
[1754824291637,0.6177,4196.2,4196.1,0.8422]
[1754824291843,1.5665,4196.2,4196.1,0.2734]
[1754824292240,1.5665,4196.2,4196.1,0.8422]
[1754824292736,1.5665,4196.2,4195.7,0.5348]
[1754824292936,0.4606,4195.5,4195.4,1.5528]
[1754824293137,1.5665,4196.1,4196.0,1.5528]
[1754824293336,1.5665,4196.1,4195.1,0.9204]
[1754824293539,0.3995,4195.9,4195.0,0.9204]
[1754824293737,1.167,4195.8,4195.7,0.2734]
[1754824293939,1.167,4195.8,4195.7,1.5528]
[1754824295143,0.3995,4196.1,4195.7,0.6324]
[1754824295444,0.1768,4196.0,4195.9,1.5803]
[1754824295944,1.5244,4196.0,4195.9,1.5803]
[1754824296142,1.5244,4196.0,4195.9,1.0322]
[1754824296841,0.8841,4196.0,4195.9,1.5803]
[1754824297040,0.6491,4197.2,4194.6,21.956]
[1754824297240,1.26451204,4197.6,4194.6,21.956]
[1754824297447,1.26451204,4197.6,4195.0,3.16405453]
[1754824297647,0.9072,4197.3,4195.2,0.9479]
[1754824297841,0.5211,4197.2,4195.3,0.9479]
[1754824298048,0.6442,4197.4,4195.4,0.6786]
[1754824298236,0.363,4195.8,4195.7,0.8809]
[1754824298438,1.5244,4195.8,4195.7,1.5595]
[1754824298651,1.26451204,4197.5,4196.0,0.6116]
[1754824298652,0.5211,4196.1,4196.0,0.6116]
[1754824298842,0.6211,4196.1,4196.0,1.5595]
[1754824299043,0.8841,4196.1,4196.0,1.5595]
[1754824299244,1.5244,4196.1,4196.0,1.5595]
[1754824299641,1.5244,4196.1,4196.0,0.2595]
[1754824300042,1.5244,4196.1,4195.6,0.3998]
[1754824300247,1.5244,4195.7,4195.6,0.4303]
[1754824300646,0.363,4195.1,4195.0,0.5811]
[1754824300845,1.5244,4195.1,4195.0,1.2807]
[1754824301051,1.5244,4195.1,4195.0,4.61283393]
[1754824303048,1.5244,4195.1,4195.0,1.0114]
[1754824303253,1.5244,4195.1,4195.0,1.2902]
[1754824303451,1.5244,4195.1,4195.0,1.5595]
[1754824303751,0.8841,4195.1,4195.0,1.5595]
[1754824303953,0.263,4195.7,4195.0,1.5595]
[1754824304151,1.5244,4195.7,4195.6,0.8301]
[1754824304653,1.5244,4195.7,4195.6,1.5595]
[1754824305454,1.5244,4195.7,4194.9,34.349]
[1754824305455,0.9072,4195.6,4195.3,0.3998]
[1754824305643,1.45245723,4196.7,4195.3,0.8301]
[1754824305644,1.5244,4195.4,4195.3,0.8301]
[1754824305849,0.6172,4195.4,4195.0,3.09669959]
[1754824306047,0.6172,4195.2,4195.1,0.8301]
[1754824306256,1.5244,4195.2,4195.1,1.0114]
[1754824306556,1.5244,4195.2,4195.1,1.5595]
[1754824309353,0.8841,4195.2,4195.1,1.5595]
[1754824309950,1.5244,4195.2,4195.1,1.5595]
[1754824310152,1.0033,4195.2,4195.1,0.4303]
[1754824310355,1.5244,4195.2,4195.1,0.8301]
[1754824310654,1.5244,4195.2,4195.1,1.0114]
[1754824310854,1.5244,4195.2,4195.1,1.5595]
[1754824311051,1.5244,4195.2,4195.1,1.0114]
[1754824311846,1.5244,4195.2,4195.1,1.5595]
[1754824313962,1.207,4196.6,4195.1,0.6116]
[1754824314260,0.3861,4196.2,4195.2,3.10710778]
[1754824314563,0.363,4195.5,4195.4,1.0114]
[1754824314750,0.8841,4195.5,4195.4,1.5595]
[1754824315160,1.1383,4195.5,4195.4,1.5595]
[1754824315364,1.5244,4195.5,4195.4,1.5595]
[1754824316261,0.6211,4195.5,4195.4,1.5595]
[1754824316855,0.8841,4195.5,4195.4,1.5595]
[1754824317162,0.363,4195.5,4195.4,1.5595]
[1754824317559,0.8841,4195.5,4195.4,1.5595]
[1754824317957,1.5244,4195.5,4195.4,1.5595]
[1754824319263,0.18794519,4196.7,4195.4,1.5595]
[1754824319457,0.363,4195.6,4195.5,1.0114]
[1754824319661,0.363,4195.6,4195.5,1.5595]
[1754824319862,1.5244,4195.6,4195.1,0.9479]
[1754824320061,1.5244,4195.5,4195.4,0.4303]
[1754824320261,1.5244,4195.5,4195.4,0.8301]
[1754824320456,1.0801,4195.3,4194.9,0.3998]
[1754824320666,0.6172,4195.0,4194.1,0.3998]
[1754824320859,0.5211,4194.2,4194.0,0.3998]
[1754824321056,1.5244,4194.1,4194.0,1.2902]
[1754824321256,1.5244,4194.1,4194.0,1.5595]
[1754824321460,0.2581,4194.9,4194.1,0.9479]
[1754824321660,0.2581,4195.9,4194.9,0.5481]
[1754824321865,0.8802,4195.8,4195.7,0.4303]
[1754824322068,0.8841,4195.8,4195.7,1.5595]
[1754824322263,0.6211,4196.3,4196.2,0.6116]
[1754824322466,1.1383,4196.3,4196.2,1.5595]
[1754824322767,1.5244,4196.3,4196.2,1.5595]
[1754824324863,0.75761036,4197.2,4196.2,1.5595]
[1754824325059,1.0895,4197.1,4197.0,0.2595]
[1754824325259,1.2663,4197.1,4197.0,0.2595]
[1754824325464,1.2663,4197.1,4197.0,0.4329]
[1754824325861,1.1394,4197.1,4197.0,1.5646]
[1754824326470,1.5429,4197.1,4197.0,1.5646]
[1754824326770,0.4398,4197.1,4197.0,1.5646]
[1754824327066,0.75761036,4198.5,4197.1,0.5558]
[1754824327261,0.9422,4198.4,4197.3,0.5558]
[1754824327463,1.264,4198.2,4198.1,0.8526]
[1754824327660,1.5435,4198.2,4198.1,0.8526]
[1754824327863,1.5435,4198.2,4198.1,1.5784]
[1754824328064,1.5435,4198.2,4198.1,1.2991]
[1754824328269,1.5435,4198.2,4198.1,0.4467]
[1754824328562,0.9422,4198.7,4198.1,0.4467]
[1754824328766,1.5435,4198.2,4198.1,1.5784]
[1754824328967,1.5435,4198.2,4198.1,1.0226]
[1754824329161,1.5435,4198.2,4197.8,0.2793]
[1754824329162,0.3448,4198.2,4197.7,0.5558]
[1754824329363,1.3742,4198.1,4198.0,0.4467]
[1754824329663,1.1,4199.5,4198.5,0.4467]
[1754824329664,0.8605,4198.6,4198.5,0.4467]
[1754824329869,1.5435,4198.6,4198.5,1.0226]
[1754824330256,0.3448,4198.1,4198.0,1.0226]
[1754824330461,0.8835,4198.1,4198.0,1.5784]
[1754824331366,0.4035,4198.5,4198.0,0.6167]
[1754824331569,0.8808,4198.4,4198.3,0.6167]
[1754824331768,1.2843,4198.4,4198.3,1.0226]
[1754824332168,1.5435,4198.4,4198.3,0.8526]
[1754824332469,0.1693,4198.4,4198.3,1.5784]
[1754824332664,0.2795,4199.2,4198.3,0.6167]
[1754824332872,1.5435,4199.2,4199.1,0.4467]
[1754824333364,1.5435,4199.2,4199.1,1.0226]
[1754824334369,1.5435,4199.2,4199.1,1.5784]
[1754824334964,1.5435,4199.2,4199.1,1.0226]
[1754824335169,1.5435,4198.8,4198.7,0.2733]
[1754824335361,0.3448,4198.1,4198.0,0.896]
[1754824335566,0.2795,4198.5,4198.1,0.2765]
[1754824335761,0.4035,4199.0,4198.4,0.6167]
[1754824335969,0.8835,4198.8,4198.7,0.6167]
[1754824336266,1.14,4198.8,4198.7,1.5784]
[1754824336571,1.5435,4198.8,4198.7,1.0226]
[1754824337071,1.5435,4198.8,4198.7,1.5784]
[1754824337666,1.14,4198.8,4198.7,1.5784]
[1754824337871,0.604,4198.8,4198.7,1.5784]
[1754824338066,0.8605,4199.4,4199.3,0.6167]
[1754824338267,1.5435,4199.4,4199.3,1.5784]
[1754824338473,0.3448,4199.4,4199.3,1.5784]
[1754824338867,1.14,4199.4,4197.4,34.322]
[1754824339068,0.5387,4199.2,4197.5,0.9617]
[1754824339270,0.9422,4199.1,4197.6,0.9617]
[1754824339472,0.9422,4199.1,4197.7,0.9617]
[1754824339673,0.9422,4199.1,4197.8,0.9617]
[1754824339970,1.0048,4198.0,4197.9,1.0226]
[1754824340273,0.6013,4198.0,4197.9,1.5784]
[1754824340470,0.3448,4198.0,4197.9,1.5784]
[1754824341269,1.14,4198.0,4197.9,1.5784]
[1754824341478,1.5435,4198.0,4197.9,1.0226]
[1754824342474,0.9422,4197.9,4197.6,0.6824]
[1754824342673,1.14,4197.7,4197.6,1.2991]
[1754824342869,1.14,4197.7,4197.6,1.5784]
[1754824343065,0.8835,4197.7,4197.6,1.5784]
[1754824343275,0.3448,4197.7,4197.6,1.5784]
[1754824344178,0.00361569,4198.0,4197.9,1.5784]
[1754824344576,0.88711569,4198.0,4197.9,4.61384144]
[1754824344775,1.54711569,4198.0,4197.9,4.61384144]
[1754824344976,1.54711569,4198.0,4197.9,1.0226]
[1754824345175,1.54711569,4198.0,4197.9,0.8526]
[1754824345374,1.54711569,4198.0,4197.9,0.2733]
[1754824346579,1.264,4197.6,4197.5,0.8526]
[1754824346780,1.5435,4197.6,4197.5,1.0226]
[1754824347079,0.8835,4197.6,4197.5,1.5784]
[1754824347286,0.604,4197.6,4197.5,1.5784]
[1754824347974,0.94581569,4198.0,4197.5,1.5784]
[1754824348174,0.7142,4197.9,4197.8,1.3019]
[1754824348377,0.7142,4197.9,4197.8,1.5784]
[1754824348579,0.00361569,4198.0,4197.9,1.5784]
[1754824348781,0.26281569,4198.0,4197.9,1.5784]
[1754824348981,0.71781569,4198.0,4197.9,1.5784]
[1754824349483,0.88711569,4198.0,4197.9,1.5784]
[1754824351683,0.00361569,4198.0,4197.9,1.5784]
[1754824353389,1.54711569,4198.0,4197.9,1.5784]
[1754824353588,1.54711569,4198.0,4197.9,0.4467]
[1754824353781,1.54711569,4198.0,4197.9,0.8526]
[1754824354479,1.54711569,4198.0,4196.8,22.118]
[1754824354480,1.1987,4197.9,4197.8,0.4467]
[1754824354685,1.1987,4197.9,4197.8,1.0226]
[1754824354686,1.5435,4197.9,4197.8,1.0226]
[1754824354986,1.5435,4197.9,4197.8,1.5784]
[1754824355788,0.00361569,4198.0,4197.8,0.6167]
[1754824355987,0.00361569,4198.0,4197.9,1.5679]
[1754824356187,0.90461569,4198.0,4197.9,1.5679]
[1754824356490,0.00361569,4198.0,4197.9,4.63844078]
[1754824361594,0.00361569,4198.0,4197.9,10.63844078]
[1754824361793,0.2645,4198.6,4197.9,10.63844078]
[1754824361989,0.6829,4198.8,4198.0,0.9613]
[1754824362197,1.5748,4198.8,4198.7,1.5679]
[1754824363392,1.2949,4199.4,4199.3,0.2538]
[1754824363697,1.5748,4199.4,4199.3,1.018]
[1754824363897,1.5748,4199.4,4199.3,1.2869]
[1754824364600,1.5748,4199.0,4198.9,0.8362]
[1754824364793,1.5748,4199.0,4198.9,0.4248]
[1754824365399,1.5748,4199.0,4198.9,0.8362]
[1754824365699,1.5748,4199.0,4198.9,1.018]
[1754824365995,1.1,4199.5,4197.8,34.312]
[1754824366193,0.3566,4198.0,4197.9,1.5679]
[1754824366500,0.901,4198.0,4197.9,4.70830556]
[1754824366694,0.403,4198.3,4197.9,4.70830556]
[1754824366895,0.2645,4198.3,4198.2,0.6066]
[1754824367190,0.9474,4199.4,4198.4,1.018]
[1754824367395,1.1718,4198.5,4198.4,1.5679]
[1754824367591,1.5748,4198.5,4198.4,1.5679]
[1754824367803,1.5748,4198.5,4198.4,4.68574216]
[1754824370596,0.9073,4198.6,4198.5,0.4248]
[1754824370900,1.5748,4198.6,4198.5,1.018]
[1754824371100,1.5748,4198.6,4198.5,1.5679]
[1754824371301,1.1718,4198.6,4198.5,1.5679]
[1754824372598,0.6365,4198.6,4198.5,0.8755]
[1754824372800,1.5748,4198.6,4198.5,0.2538]
[1754824373097,0.1743,4198.6,4198.5,4.66581521]
[1754824373294,0.3566,4198.6,4198.5,4.25441521]
[1754824373500,0.6211,4198.6,4198.5,4.25441521]
[1754824373892,0.2799,4199.3,4198.9,0.2538]
[1754824374098,1.503,4199.5,4199.0,0.6066]
[1754824374099,0.901,4199.1,4199.0,0.6066]
[1754824374299,0.901,4199.1,4199.0,3.67222709]
[1754824374503,0.901,4199.1,4199.0,0.6066]
[1754824374702,0.901,4199.1,4199.0,1.5679]
[1754824374903,1.1718,4199.1,4199.0,1.5679]
[1754824375291,0.5444,4199.4,4199.1,0.4114]
[1754824375496,1.5748,4199.4,4199.3,1.5679]
[1754824375797,1.1,4199.5,4199.3,4.68545243]
[1754824375999,1.7365,4199.5,4199.4,1.5679]
[1754824376403,1.7365,4199.5,4199.4,4.64448176]
[1754824376603,2.6748,4199.5,4199.4,4.64448176]
[1754824376800,1.1,4199.5,4199.4,4.64448176]
[1754824380303,1.1,4199.5,4199.4,10.64448176]
[1754824380500,0.725,4200.3,4200.2,0.1818]
[1754824380704,1.5748,4200.3,4200.2,0.6066]
[1754824380905,1.5748,4200.3,4200.2,3.7722842]
[1754824381204,1.5748,4200.3,4200.2,3.5904842]
[1754824381608,1.5748,4200.3,4200.2,4.7335842]
[1754824382303,0.6274,4200.8,4200.7,0.4248]
[1754824382505,1.5748,4200.8,4200.7,0.6066]
[1754824382810,1.5748,4200.8,4200.7,0.4248]
[1754824383107,0.8919,4200.8,4200.7,0.4248]
[1754824383410,1.5748,4200.8,4200.7,4.62807899]
[1754824383812,0.403,4202.0,4200.9,0.9613]
[1754824384012,1.26451204,4202.9,4201.0,0.9613]
[1754824384215,0.18913358,4203.0,4201.2,0.5499]
[1754824384512,0.8919,4201.4,4201.3,4.63475552]
[1754824384812,0.6274,4201.4,4201.3,0.6066]
[1754824385208,1.5748,4201.4,4201.3,4.17808421]
[1754824386108,1.533,4200.5,4200.4,23.6663]
[1754824386408,1.533,4200.5,4200.4,4.59013135]
[1754824386605,1.533,4200.5,4200.4,3.04183135]
[1754824387114,0.6152,4200.2,4200.1,4.11641564]
[1754824387404,1.533,4200.2,4200.1,0.1851]
[1754824387614,1.533,4199.8,4199.7,0.4609]
[1754824388115,1.533,4199.8,4199.7,4.64011564]
[1754824398119,1.533,4199.8,4199.7,26.19341564]
[1754824400419,1.533,4199.8,4199.7,26.71711564]
[1754824402814,0.6152,4199.9,4199.8,1.1652]
[1754824403016,1.1518,4199.9,4199.8,1.5483]
[1754824403321,1.533,4199.9,4199.8,4.70016402]
[1754824405920,1.533,4199.9,4199.8,4.44546402]
[1754824406120,1.533,4199.9,4199.8,4.17646402]
[1754824406321,1.533,4199.9,4199.8,4.70016402]
[1754824412736,1.533,4199.9,4199.8,4.25056402]
[1754824413027,1.533,4199.9,4199.8,4.70016402]
[1754824414926,1.533,4199.9,4199.8,3.81076402]
[1754824415120,0.4415,4198.9,4198.8,1.5483]
[1754824415323,1.533,4198.9,4198.8,23.5333]
[1754824415524,1.533,4198.9,4198.8,26.60203376]
[1754824415719,1.1518,4198.9,4198.8,26.60203376]
[1754824416132,1.5464,4198.9,4198.8,3.06873376]
[1754824416429,1.5464,4198.9,4198.8,23.5428]
[1754824416930,1.1518,4198.9,4198.8,26.69053356]
[1754824417124,0.2676,4199.3,4198.8,26.69053356]
[1754824417432,1.558,4199.2,4199.1,1.5508]
[1754824417625,1.558,4199.2,4199.1,21.994]
[1754824417826,1.558,4199.2,4199.1,25.14043588]
[1754824418027,1.558,4199.2,4199.1,21.994]
[1754824418929,0.6378,4199.2,4198.8,0.4001]
[1754824419132,1.26451204,4200.5,4198.6,0.833]
[1754824419133,0.9054,4198.7,4198.6,0.833]
[1754824419330,0.9054,4198.7,4198.6,0.4329]
[1754824419331,1.558,4198.7,4198.6,0.4329]
[1754824419630,1.558,4198.7,4198.6,25.04118416]
[1754824419830,1.558,4198.7,4198.6,21.993]
[1754824420927,0.6378,4198.4,4198.3,22.1677]
[1754824421133,1.558,4198.4,4198.3,22.823]
[1754824421529,1.558,4198.4,4198.3,23.2794]
[1754824421930,1.558,4197.8,4197.7,34.298]
[1754824422229,1.558,4197.8,4197.7,56.288]
[1754824423036,1.558,4197.8,4197.7,57.2269]
[1754824425235,0.8015,4198.3,4198.2,0.2552]
[1754824425440,1.3834,4198.3,4198.2,23.1187]
[1754824425739,1.558,4198.6,4198.5,0.6119]
[1754824426038,0.9202,4199.6,4198.5,23.5488]
[1754824426240,0.1746,4198.7,4198.6,1.5508]
[1754824426428,0.8875,4198.7,4198.6,1.5508]
[1754824426628,1.1634,4198.7,4198.6,1.5508]
[1754824426831,1.558,4198.7,4198.6,1.5508]
[1754824427437,1.558,4197.8,4197.7,35.2369]
[1754824427636,0.9054,4197.8,4197.7,57.2409]
[1754824427846,1.1634,4198.2,4198.1,1.5508]
[1754824428140,1.1634,4198.2,4198.1,23.5498]
[1754824428336,1.558,4198.2,4198.1,23.5498]
[1754824428843,1.558,4198.2,4198.1,23.011]
[1754824429040,1.558,4198.2,4198.1,0.179]
[1754824429235,1.558,4198.2,4198.1,22.003]
[1754824430038,1.558,4198.2,4197.7,34.6981]
[1754824430238,0.6378,4197.9,4197.8,22.831]
[1754824430546,1.558,4197.9,4197.8,26.11683033]
[1754824430936,1.558,4197.9,4197.8,26.65563033]
[1754824431438,1.1634,4197.9,4197.8,26.65563033]
[1754824431639,1.1634,4198.7,4198.6,0.1777]
[1754824431839,1.1634,4198.7,4198.6,22.1647]
[1754824432039,1.1634,4198.7,4198.6,21.987]
[1754824432245,1.558,4198.6,4198.5,21.984]
[1754824435545,0.6378,4197.9,4197.8,1.012]
[1754824435746,1.1634,4197.9,4197.8,23.5218]
[1754824435933,0.5256,4198.3,4197.8,25.68224749]
[1754824436133,1.558,4198.3,4198.2,1.5508]
[1754824436346,1.558,4198.3,4198.2,23.5188]
[1754824437039,0.6378,4198.3,4198.2,23.5188]
[1754824437348,1.558,4198.5,4198.4,0.6119]
[1754824437543,1.558,4198.5,4198.4,1.5508]
[1754824439246,1.558,4198.5,4198.2,21.968]
[1754824439447,1.3707,4198.4,4198.2,22.3681]
[1754824439649,1.558,4198.3,4198.2,22.5458]
[1754824439945,1.558,4198.3,4198.2,23.5188]
[1754824440645,2.61896504,4200.2,4198.2,22.5799]
[1754824440844,0.9202,4200.0,4198.4,0.4001]
[1754824441049,1.558,4198.5,4198.4,1.5508]
[1754824441248,1.558,4198.5,4198.4,23.5178]
[1754824441642,1.558,4198.5,4198.4,21.967]
[1754824441842,1.558,4198.5,4198.4,22.3999]
[1754824442057,1.558,4198.5,4198.4,23.5178]
[1754824442558,0.6526,4199.8,4198.4,23.1177]
[1754824442751,0.6378,4198.6,4198.5,1.012]
[1754824442952,1.558,4198.6,4198.5,1.5508]
[1754824444559,0.9054,4198.6,4198.5,1.5508]
[1754824445357,1.5659,4198.6,4198.5,1.5508]
[1754824445951,0.8772,4199.2,4199.1,1.539]
[1754824446260,1.5394,4199.2,4199.1,23.506]
[1754824447258,1.0988,4199.2,4199.1,23.506]
[1754824447558,1.5394,4199.2,4199.1,23.506]
[1754824451360,1.1369,4199.2,4199.1,23.506]
[1754824452361,0.8772,4199.2,4199.1,23.506]
[1754824452662,1.26451204,4200.7,4199.1,21.967]
[1754824452861,0.3617,4199.4,4199.3,1.539]
[1754824453064,0.2597,4200.1,4199.3,1.15]
[1754824453258,1.2797,4200.0,4199.9,0.6189]
[1754824453458,1.2797,4200.0,4199.9,1.539]
[1754824453760,1.5394,4200.0,4199.9,1.539]
[1754824454271,1.5394,4200.0,4199.9,1.0079]
[1754824454563,1.5394,4200.0,4199.8,21.964]
[1754824454754,0.9177,4199.9,4199.8,21.964]
[1754824454956,1.5394,4199.9,4199.8,21.964]
[1754824455363,0.94602154,4200.9,4199.8,21.964]
[1754824455565,1.5394,4199.9,4199.8,23.503]
[1754824457167,1.5394,4199.9,4199.8,23.2424]
[1754824457367,1.5394,4199.9,4199.8,22.7922]
[1754824458360,1.5394,4199.9,4199.8,22.4032]
[1754824458666,1.5394,4199.9,4199.8,22.7922]
[1754824458862,0.9177,4199.8,4198.3,0.6595]
[1754824459068,0.94592461,4200.9,4198.4,21.962]
[1754824459267,0.9177,4200.8,4198.5,0.9201]
[1754824459463,0.9177,4200.7,4198.6,0.9201]
[1754824459668,0.9458695,4200.9,4198.5,3.06718987]
[1754824459966,0.9177,4200.3,4198.4,21.962]
[1754824460265,0.9177,4200.8,4199.1,0.389]